Cogmind - Beta 17 @@@ ROGUE MODE // 2026.07.25 @ 00:24:27 Player: aperiodic Result: Destroyed by P-80 Master with Gamma Rifle Performance ------------- Evolutions (8) 4000 Regions Visited (23) 4600 Robots Destroyed (259) 1295 Value Destroyed (11240) 11240 Prototype IDs (121) 2420 Alien Tech Used (4) 800 Bonus (9118) 9118 TOTAL SCORE: 33473 Bonus ------- High Alert Combat Kills 548 Follower Combat Kills 1350 Network Hubs Disabled 600 Registered with UFD 300 Met Optimus in HQ 500 Met Zhirov 300 Met Warlord at Base 500 MAIN.C Attacked Warlord 500 Warlord Defense Kills 1068 Met R17 at Cetus 500 Used Core Reset Matrix 3000 Met R17 at Research 2000 Friendly Fire -2048 Cogmind --------- Core Integrity 0/1450 Matter 138/300 Energy 41/100 System Corruption 13% Temperature Cool (2) Movement Flying (27) Location -2/Testing Parts ------- > --- POWER (2) -------- (None) > --- PROPULSION (8) --- Hover Unit Cooled Linear Gravjet Diametric Drive Improved Diametric Drive > --- UTILITY (10) ----- Experimental Heat Sink Experimental Heat Sink Experimental Heat Sink Advanced Gravity Neutralizer Spectral Analyzer Experimental Core Analyzer Cloaking Device Graphene Brace Advanced Hacking Suite > --- WEAPON (3) ------- (None) > --- INVENTORY (5) ---- EMDS Matter Neutralizer Core Stripper Peak State ------------ > --- POWER ------------ Vortex Chain Reactor > --- PROPULSION ------- Thunder Leg Thunder Leg Thunder Leg Biometal Leg Improved Thunder Leg Enhanced Biometal Leg Enhanced Biometal Leg Experimental Myomer Leg > --- UTILITY ---------- Large Storage Unit Spectral Analyzer IFF Parser Advanced Targeting Computer Experimental Core Analyzer Advanced Weapon Cycler Improved Utility Shielding Graphene Brace Experimental EM Shield Advanced Hacking Suite > --- WEAPON ----------- RU-N14's Throwing Claymores v3 Core Stripper > --- INVENTORY -------- Experimental Core Analyzer Advanced Kinecellerator Experimental Cloaking Device Experimental Weapon Shielding Subatomic Replicator Vortex Rail EMDS Matter Neutralizer Vortex Driver Advanced KE Penetrator Multitool RU-N14's Throwing Claymores v3 RU-N14's Throwing Claymores v3 RU-N14's Throwing Claymores v3 [Rating: 193] Favorites ----------- Power Quantum Reactor Engine Ion Engine Power Core Light Fission Core Reactor Quantum Reactor Propulsion Enhanced Biometal Leg Treads Centrium Heavy Treads Leg Enhanced Biometal Leg Wheel Wheel Hover Unit Improved Linear Gravjet Flight Unit Cooled Cesium-ion Thruster Utility Centrium Medium Armor Plating Device IFF Parser Storage Medium Storage Unit Processor Spectral Analyzer Hackware Advanced Hacking Suite Protection Centrium Medium Armor Plating Weapon Advanced KE Penetrator Energy Gun Advanced Variable Charge Gun Energy Cannon Subdweller Beam Cannon Ballistic Gun Advanced KE Penetrator Ballistic Cannon Assault Cannon Launcher Heavy Missile Launcher Special Weapon CPS Tube Impact Weapon Impact Mace Slashing Weapon Power Sword Piercing Weapon Makeshift Spear Build | -11 -10 -10 -8 -8 -6 -6 -6 -6 -6 -5 -5 -5 -5 -4 -4 -4 -4 -4 -3 -3 -3 -2 -2 ------- Run | Yrd Mat Sub Rec Scr Fac Ext Cet Arc Hub Fac Upp Upp Zhi Pro Fac Upp Upp War Pro Res Qua Res Tes Slots Evolved 16 | . . . . . 8 . . . . 2 . . . . 2 . . . . 2 . 2 . Power 1 | . . . . . . . . . . . . . . . 1 . . . . . . . . Propulsion 6 | . . . . . 2 . . . . . . . . . . . . . . 2 . 2 . Utility 8 | . . . . . 5 . . . . 2 . . . . 1 . . . . . . . . Weapon 1 | . . . . . 1 . . . . . . . . . . . . . . . . . . Parts Attached 183 | 7 10 6 5 9 12 10 11 4 12 16 1 . 2 . 4 2 3 15 2 12 3 28 9 Power 13 | 1 1 . 1 . . 2 2 1 . . . . . . . . 1 1 . . . 3 . Engine 2 | 1 1 . . . . . . . . . . . . . . . . . . . . . . Core 4 | . . . 1 . . 1 . . . . . . . . . . 1 . . . . 1 . Reactor 7 | . . . . . . 1 2 1 . . . . . . . . . 1 . . . 2 . Propulsion 45 | 2 4 1 1 2 3 1 4 . 5 . . . . . 1 . . 1 . 4 . 12 4 Treads 6 | . 2 . . . . . 3 . 1 . . . . . . . . . . . . . . Leg 23 | . . . . 2 . . 1 . 4 . . . . . 1 . . 1 . 4 . 10 . Wheel 6 | 2 2 1 1 . . . . . . . . . . . . . . . . . . . . Hover 7 | . . . . . 3 1 . . . . . . . . . . . . . . . 1 2 Flight 3 | . . . . . . . . . . . . . . . . . . . . . . 1 2 Utility 84 | 2 4 2 1 3 7 5 3 2 5 11 1 . 2 . 3 2 2 8 . 6 1 9 5 Device 38 | 1 1 . . 2 2 3 1 2 2 3 . . 1 . 2 2 1 4 . 3 1 2 5 Storage 11 | 1 3 . . 1 1 1 . . . 1 . . 1 . 1 . . . . . . 1 . Processor 10 | . . . . . 1 . . . 1 4 . . . . . . . 1 . . . 3 . Hackware 4 | . . . . . 2 . . . . 2 . . . . . . . . . . . . . Protection 21 | . . 2 1 . 1 1 2 . 2 1 1 . . . . . 1 3 . 3 . 3 . Artifact . | . . . . . . . . . . . . . . . . . . . . . . . . Weapon 41 | 2 1 3 2 4 2 2 2 1 2 5 . . . . . . . 5 2 2 2 4 . Energy Gun 8 | . . 1 . . 1 . 1 1 1 . . . . . . . . 2 . 1 . . . Energy Cannon 6 | . . 1 1 . . . . . . 1 . . . . . . . 1 . . 1 1 . Ballistic Gun 8 | 2 . . . . 1 . 1 . . 3 . . . . . . . . 1 . . . . Ballistic Cannon . | . . . . . . . . . . . . . . . . . . . . . . . . Launcher 4 | . 1 . . 1 . 1 . . . . . . . . . . . 1 . . . . . Special Weapon 10 | . . 1 . 2 . 1 . . 1 . . . . . . . . 1 . 1 . 3 . Impact Weapon 1 | . . . . . . . . . . . . . . . . . . . . . 1 . . Slashing Weapon 2 | . . . . 1 . . . . . . . . . . . . . . 1 . . . . Piercing Weapon 2 | . . . 1 . . . . . . 1 . . . . . . . . . . . . . Special Melee Weapon . | . . . . . . . . . . . . . . . . . . . . . . . . Unidentified Prototypes 38 | . . . . 1 . 1 3 . 4 3 1 . 2 1 . . . 10 . 2 1 2 7 Parts Lost 48 | . . 1 4 . . 3 5 . 2 1 . . . 1 1 . 3 . . . 4 19 4 Power 4 | . . . 1 . . . . . . . . . . . . . 1 . . . . 2 . Propulsion 16 | . . . 2 . . 2 2 . . . . . . . . . . . . . 2 7 1 Utility 18 | . . 1 . . . . 1 . 1 1 . . . 1 1 . 1 . . . 1 8 2 Weapon 10 | . . . 1 . . 1 2 . 1 . . . . . . . 1 . . . 1 2 1 Highest Loss Streak 11 | . . 1 3 . . 2 5 . 1 1 . . . 1 1 . 2 . . . 2 11 3 To Critical Strikes 3 | . . . . . . . 3 . . . . . . . . . . . . . . . . Average Backups 7 | 5 13 12 18 2 7 8 8 8 7 7 9 9 9 7 8 7 7 12 14 14 13 12 3 Power . | 1 . 1 1 . . . 1 . . . . . . . . . . . . . . . . Propulsion . | 2 4 2 2 . . . . 1 1 . . . . . . . . . . . . . . Utility 3 | . 4 4 8 1 3 4 3 2 3 4 4 4 5 4 5 4 4 4 5 5 4 3 . Weapon 2 | 1 3 4 5 . 1 . 1 2 1 2 4 3 2 2 2 2 2 6 8 7 7 6 3 Tool/Special . | . . . . . . . . . . . . . . . . . . . . . . . . Unused Backups 44 | . 4 10 2 17 . 1 2 . 1 1 . . . . . . . 4 . . 1 1 . Power 4 | . 2 1 . 1 . . . . . . . . . . . . . . . . . . . Propulsion 3 | . 1 1 . 1 . . . . . . . . . . . . . . . . . . . Utility 17 | . . 2 1 9 . 1 1 . 1 1 . . . . . . . . . . 1 . . Weapon 17 | . 1 6 1 4 . . 1 . . . . . . . . . . 4 . . . . . Tool/Special 3 | . . . . 2 . . . . . . . . . . . . . . . . . 1 . Average Slot Usage (%) 90 | . 99 81 97 96 82 84 77 86 81 91 94 94 80 89 84 89 82 90 93 91 91 76 46 Engine 2 | . 14 12 . 1 . . . . . . . . . . . . . 2 . . . . . Core 3 | . . . 13 7 6 5 . . . . . . . . . . 2 3 . . . . . Reactor 4 | . . . . 4 . . 6 6 6 4 5 5 5 5 5 5 2 1 5 4 4 3 . Treads 3 | . 18 3 . . . . 9 13 12 . . . . . . . . . . . . . . Leg 5 | . . . . 2 . . . . 1 23 23 23 23 23 20 21 21 21 21 25 27 26 . Wheel 3 | . 9 21 26 2 . . . . . . . . . . . . . . . . . . . Hover 8 | . . . . 18 20 18 . . . . . . . . . . . . . . . . 2 Device 17 | . 14 7 . 21 18 17 15 20 20 17 11 11 10 6 11 21 21 17 21 19 19 14 22 Storage 4 | . 14 7 14 2 6 6 6 6 6 5 5 5 5 5 5 5 5 5 5 4 4 3 . Processor 4 | . . . . 1 5 6 6 6 3 7 11 11 11 11 10 10 10 10 10 7 4 8 8 Hackware 1 | . . . . . 5 6 4 . . 8 11 11 11 11 9 5 5 5 5 4 4 4 4 Protection 5 | . . 4 14 1 1 2 5 13 11 5 5 5 5 5 5 5 1 10 10 10 12 6 2 Energy Gun 5 | . . 7 . 7 4 6 6 6 11 4 . . . . . . . . . . . . . Energy Cannon 2 | . . 8 14 1 . . . . . . . . . . . . . 1 5 . . 2 . Ballistic Gun 6 | . 27 7 . 3 3 4 4 6 6 9 17 17 5 17 15 15 12 6 4 7 4 . . Launcher 1 | . . . . 3 . . . . . . . . . . . . . 1 . . . . . Special Weapon 1 | . . . . 1 . . 6 6 . . . . . . . . . 1 . . . . . Impact Weapon 2 | . . . . 6 . . . . . . . . . . . . . . . . 1 2 . Slashing Weapon 1 | . . . . 1 3 6 . . . . . . . . . . . . 4 4 4 . . Piercing Weapon 1 | . . . 13 1 3 . . . . . . . . . . . . . . . . . . Peak Build Rating 193 | 7 11 26 22 52 91 92 113 116 120 125 118 118 124 120 122 123 124 152 144 161 179 193 107 Average Rating 71 | 5 8 14 21 39 80 87 92 115 113 115 117 118 104 110 116 120 101 118 143 154 165 157 88 On Entrance 90 | . 7 11 13 22 48 90 84 113 116 105 118 118 118 124 117 116 118 86 136 144 161 157 60 Avg Prop Armor Cover (%) 11 | . . 2 . 13 . . 4 18 . . . . . . . . . . . 4 2 5 16 Naked Turns . | . . . . . . . . . . . . . . . . . . . . . . . . Heaviest Build 112 | 15 50 55 60 60 40 43 59 59 85 95 64 64 65 64 75 78 77 107 96 98 105 112 3 Greatest Support 229 | 20 40 26 26 40 49 49 160 160 160 120 120 120 120 120 120 113 113 115 115 143 143 229 14 Greatest Overweight (x) 19 | . 1 2 5 13 1 1 9 19 . . . . . . . . . . . . . 1 . Average Overweight (x) 2 | . . 1 2 4 . . . 17 . . . . . . . . . . . . . . . Largest Inventory Capacity 20 | 8 20 20 20 20 15 10 10 10 10 10 10 10 10 10 15 15 15 15 15 15 15 15 5 Average Capacity 9 | 7 14 12 20 6 11 10 10 10 10 10 10 10 10 10 13 15 15 15 15 15 15 14 5 Most Carried 20 | 8 20 20 20 20 14 10 10 10 10 10 10 10 10 10 10 8 12 15 15 15 15 15 5 Average Carried 7 | 5 13 12 19 2 9 9 9 10 9 8 10 9 9 8 9 8 8 13 15 15 14 13 4 Final Capacity 20 | 8 20 20 20 15 10 10 10 10 10 10 10 10 10 10 15 15 15 15 15 15 15 5 5 Final Carried 20 | 8 20 20 20 15 10 10 10 10 7 10 10 10 10 8 9 8 9 15 15 15 15 5 5 Scrap Suit Usage (%) 2 | . . . . . 13 77 7 . . . . . . . . . . . . . . . . Parts Cannibalized 14 | . . . . . . 14 . . . . . . . . . . . . . . . . . Transmogrified Parts 235 | . . . . 235 . . . . . . . . . . . . . . . . . . . Integrity Recovered 287 | . . . . 287 . . . . . . . . . . . . . . . . . . . Class Distribution -------------------- 42% | Commander-Mutant 25% | Scavenger-Tank 14% | Scavenger-Mutant 10% | Mutant 5% | Scavenger-Gunner Dominant Class ---------------- Mutant | -10/Materials Scavenger-Mutant | -10/Subcaves Commander-Mutant | -8/Recycling Commander-Mutant | -8/Scraptown Mutant | -6/Factory Mutant | -6/Extension Scavenger-Tank | -6/Cetus Scavenger-Tank | -6/Archives Scavenger-Tank | -6/Hub_04(d) Scavenger-Tank | -5/Factory Scavenger-Gunner | -5/Upper Caves Scavenger-Gunner | -5/Upper Caves Scavenger-Mutant | -5/Zhirov Scavenger-Gunner | -4/Proximity Caves Scavenger-Gunner | -4/Factory Scavenger-Tank | -4/Upper Caves Scavenger-Mutant | -4/Upper Caves Scavenger-Tank | -4/Warlord Scavenger-Mutant | -3/Proximity Caves Scavenger-Mutant | -3/Research Scavenger-Mutant | -3/Quarantine Alien-Mutant | -2/Research Sprinter | -2/Testing Resources | -11 -10 -10 -8 -8 -6 -6 -6 -6 -6 -5 -5 -5 -5 -4 -4 -4 -4 -4 -3 -3 -3 -2 -2 ----------- Run | Yrd Mat Sub Rec Scr Fac Ext Cet Arc Hub Fac Upp Upp Zhi Pro Fac Upp Upp War Pro Res Qua Res Tes Matter Collected 6466 | 234 532 492 55 200 232 676 141 246 467 653 145 36 . 431 255 171 379 180 20 324 215 382 . Remotely . | . . . . . . . . . . . . . . . . . . . . . . . . Salvage Created 12277 | 48 545 839 496 170 383 2523 131 641 1360 758 . 56 . 526 819 215 429 301 . 230 374 1433 . Parts 564 | 6 38 58 20 14 17 83 5 39 75 36 . 5 . 14 43 10 23 4 . 4 25 45 . Haulers Intercepted 9 | . 2 . . . 1 1 . . . 1 . . . . 1 . . . . 1 . 2 . Recyclers Shooed 14 | . . . 6 . 1 1 . . 1 2 . . . . 3 . . . . . . . . Parts Field Recycled . | . . . . . . . . . . . . . . . . . . . . . . . . Retrieved Matter . | . . . . . . . . . . . . . . . . . . . . . . . . Parts Self-Destructed 38 | . . 8 . . . . . . . . . 5 . 2 . 6 17 . . . . . . Prevented 5 | . . . . . . . . . . . . . . . . . 4 . 1 . . . . Parts Restored . | . . . . . . . . . . . . . . . . . . . . . . . . Kills | -11 -10 -10 -8 -8 -6 -6 -6 -6 -6 -5 -5 -5 -5 -4 -4 -4 -4 -4 -3 -3 -3 -2 -2 ------- Run | Yrd Mat Sub Rec Scr Fac Ext Cet Arc Hub Fac Upp Upp Zhi Pro Fac Upp Upp War Pro Res Qua Res Tes Combat Hostiles Destroyed 170 | . 9 17 5 4 5 31 2 4 18 8 . 1 . 3 6 4 12 8 . . 5 28 . Melee 3 | . . . 2 . 1 . . . . . . . . . . . . . . . . . . Guns 105 | . 7 2 . . 4 31 2 4 17 8 . 1 . 3 5 4 10 . . . 4 3 . Cannons 25 | . . 11 3 . . . . . . . . . . . . . . 2 . . . 9 . AOE 29 | . 2 3 . 4 . . . . . . . . . . 1 . . 6 . . 1 12 . Classes Destroyed 24 | 1 7 4 2 3 . 1 . . 2 . . . . . . . . 3 . . . 1 . Worker 22 | . 1 . . . 1 1 . . 6 . . . . . 3 . . . . . 1 9 . Builder 13 | . 1 . . . . 1 . . 3 3 . . . . 3 . . . . . 1 1 . Tunneler 2 | 2 . . . . . . . . . . . . . . . . . . . . . . . Hauler 9 | . 2 . . . 1 1 . . . 1 . . . . 1 . . . . 1 . 2 . Recycler 15 | . 1 . 4 . . 5 . . . 1 . . . . 1 . . . . 1 1 1 . Mechanic 1 | . . . . . . . . . . . . . . . . . . . . . . 1 . Operator 14 | . 1 1 . . . 1 . 9 1 . . . . . . . . . . . . 1 . Watcher 8 | . 1 . . . . 2 . . 1 . . . . . 3 . . . . . . 1 . Swarmer 25 | . . 3 1 . 1 3 . . . . . . . . . 4 9 . . . . 4 . Grunt 47 | . 9 . 1 . 2 20 . . 7 3 . . . . 1 . . 2 . . . 2 . Brawler 1 | . . . . . . . . . . . . . . . . . . 1 . . . . . Duelist 4 | . . . . . . 1 . . . . . . . . . . . 1 . . . 2 . Protector 4 | . . . . . . . . . 2 . . . . . . . . 2 . . . . . Sentry 20 | . . 1 1 . 1 6 . 4 2 1 . . . . 1 . . . . . . 3 . Demolisher 1 | . . . . . . . . . . . . . . . . . . 1 . . . . . Hunter 13 | . . . 1 . . 1 . . . . . . . . . . 2 . . . 2 7 . Programmer 29 | . . . 1 . 1 . . . 1 4 . 1 . 3 4 . 1 . . . 3 10 . Heavy 1 | . . . . . . . . . 1 . . . . . . . . . . . . . . Cetus Guard 2 | . . . . . . . 2 . . . . . . . . . . . . . . . . Lightning 5 | . . . . . . . . . 5 . . . . . . . . . . . . . . Striker 1 | . . . . . . . . . . . . . . . . . . 1 . . . . . Artisan 2 | . . 2 . . . . . . . . . . . . . . . . . . . . . Subdweller 13 | . . 13 . . . . . . . . . . . . . . . . . . . . . Federalist 1 | . . . . 1 . . . . . . . . . . . . . . . . . . . Ranger 1 | . . . . 1 . . . . . . . . . . . . . . . . . . . Scrapper 2 | . . . . 2 . . . . . . . . . . . . . . . . . . . Decomposer 1 | . . . . . . . . . . . . . . . . . 1 . . . . . . Packrat 2 | . . . . . . . . . . . . . . . . 2 . . . . . . . Thug 4 | . . . . . . . . . . . . . . . . . . 4 . . . . . Bouncer 1 | . . . . . . . . . . . . . . . . . . 1 . . . . . Best Kill Streak 14 | 1 4 3 3 3 2 9 1 9 6 3 . 1 . 1 9 4 6 6 . 1 3 14 . Combat Bots Only 10 | . 3 3 3 3 2 8 1 2 6 2 . 1 . 1 3 4 6 6 . . 2 10 . Max Kills in Single Turn 5 | 1 2 2 1 2 1 2 1 1 5 1 . 1 . 1 3 2 1 5 . 1 2 4 . Gunslinging . | . . . . . . . . . . . . . . . . . . . . . . . . Exploded 2 | . 1 2 . 2 . . . . . . . . . . 1 . . 2 . . 1 2 . Melee 1 | . . . 1 . 1 . . . . . . . . . . . . . . . . . . Uniques/NPCs Destroyed . | . . . . . . . . . . . . . . . . . . . . . . . . Combat | -11 -10 -10 -8 -8 -6 -6 -6 -6 -6 -5 -5 -5 -5 -4 -4 -4 -4 -4 -3 -3 -3 -2 -2 -------- Run | Yrd Mat Sub Rec Scr Fac Ext Cet Arc Hub Fac Upp Upp Zhi Pro Fac Upp Upp War Pro Res Qua Res Tes Hostile Shots Fired 1753 | . 35 44 29 3 32 164 28 28 311 91 . 4 . 55 94 5 88 12 2 46 264 386 32 Missed 670 | . 11 12 8 2 14 76 8 5 96 39 . . . 22 49 . 38 5 1 21 122 126 15 Hits 1083 | . 24 32 21 1 18 88 20 23 215 52 . 4 . 33 45 5 50 7 1 25 142 260 17 Melee 6 | . . . . . . . . . . . . . . . . . . . . 1 . 5 . Projectile 1077 | . 24 32 21 1 18 88 20 23 215 52 . 4 . 33 45 5 50 7 1 24 142 255 17 AOE 1 | . . . . . . . . . . 1 . . . . . . . . . . . . . Critical Strikes 57 | . . . . . . 3 6 2 12 5 . 1 . 2 1 . 2 1 . 1 5 14 2 Actively Blocked 26 | . . . . . . . . . . . . . . . 1 . 2 1 . 1 5 14 2 Part Disruptions 2 | . . . . . . . . . 1 . . . . . . . . . . . . 1 . Damage Taken 16993 | . 274 598 294 45 246 1142 593 533 3143 535 . 80 . 286 751 70 738 341 29 405 1595 4896 399 Core 2355 | . 39 78 60 9 42 121 27 61 67 23 . . . . 52 . 49 68 . 21 167 1270 201 Absorbed by Shields 303 | . . . . . . . . . . . . . . . . . . . . . 229 74 . Reduced by Siege Mode 313 | . . . . . . . 16 56 241 . . . . . . . . . . . . . . Redirected to Shielding 346 | . . . . . . . . . . . . . . . . . 63 . . . 104 179 . Ignored by Resistances 4316 | . . . . . 15 . . . 1977 362 . . . 262 336 . 111 . . . 340 913 . Regen/Repaired (Parts) 609 | . 151 . . 5 . 121 . . . 247 . . . . . . . 85 . . . . . Core Remaining (%) 74 | 100 . . . 25 . . . . 62 . . . . 88 . . . . 85 . 85 . . Volleys Fired 965 | 9 41 99 39 6 22 207 31 51 138 95 . 1 . 27 20 13 29 15 6 14 28 74 . Largest 3 | 2 2 2 1 1 2 2 2 2 3 3 . 3 . 3 3 3 3 1 1 2 2 1 . Hottest 195 | 40 40 110 80 40 132 132 110 115 195 145 . 98 . 98 98 98 98 100 100 94 68 105 . Shots Fired 1412 | 18 78 145 39 5 32 244 40 66 208 143 . 4 . 81 60 39 53 15 6 27 35 74 . Gun 1200 | 18 74 67 . . 32 244 40 66 206 143 . 4 . 81 60 39 48 . 4 27 35 12 . Cannon 150 | . . 56 39 . . . . . . . . . . . . . 5 5 2 . . 43 . Launcher 22 | . 4 3 . 5 . . . . . . . . . . . . . 10 . . . . . Special 40 | . . 19 . . . . . . 2 . . . . . . . . . . . . 19 . Kinetic 782 | 18 74 19 . 5 10 129 9 49 116 63 . 4 . 81 60 39 48 . 4 26 21 7 . Thermal 558 | . . 123 39 . 22 115 31 17 90 80 . . . . . . . . . 1 . 40 . Explosive 26 | . 4 3 . . . . . . . . . . . . . . . . . . . 19 . Electromagnetic 5 | . . . . . . . . . . . . . . . . . 5 . . . . . . Entropic 39 | . . . . . . . . . . . . . . . . . . 15 2 . 14 8 . Robot Hit Streak 25 | 4 8 25 10 2 4 14 19 25 17 14 . 6 . 5 13 4 10 3 1 5 5 12 . Robot Miss Streak 7 | 2 4 3 2 1 6 7 2 6 5 5 . . . 6 4 3 3 2 2 2 3 3 . Penetration Max 2 | . . . . . . 2 . 1 1 1 . . . 1 1 1 1 . . . 1 1 . Secondary Targets 9 | . . . . . . 1 . . 3 2 . . . . . . 3 . . . . . . Max Gunslinging Chain 1 | . . . . . . 1 . . 1 1 . . . . . . 1 . . . . . . Shots Hit Robots 849 | 11 47 93 34 3 18 151 33 48 143 66 . 2 . 23 40 6 24 6 1 17 28 55 . Core Hits 461 | 3 26 41 9 4 10 73 13 24 57 25 . 2 . 11 40 7 12 24 . 5 11 64 . Critical Kills 29 | . . 1 . . 1 5 1 7 5 3 . . . . 2 . . . . 1 2 1 . Critical Parts Destroyed 37 | . . . . . . 5 . 4 14 3 . . . . 4 . 1 . . 2 3 1 . Critical Strikes 102 | . . 1 . . 5 28 5 14 19 6 . . . . 6 . 3 1 . 3 5 6 . Burn 22 | . . . . . 1 17 4 . . . . . . . . . . . . . . . . Meltdown 2 | . . 1 . . . . . . . . . . . . . . . . . . . 1 . Destroy 65 | . . . . . 1 11 1 14 19 6 . . . . 6 . 1 . . 3 3 . . Corrupt 2 | . . . . . . . . . . . . . . . . . 2 . . . . . . Sever 6 | . . . . . 3 . . . . . . . . . . . . . . . . 3 . Detonate 3 | . . . . . . . . . . . . . . . . . . . . . 2 1 . Sunder 2 | . . . . . . . . . . . . . . . . . . 1 . . . 1 . Melee Attacks 127 | . . . 7 4 50 5 . . . 1 . . . . . . . . 7 6 23 24 . Kinetic 24 | . . . . . . . . . . . . . . . . . . . . . 5 19 . Impact . | . . . . . . . . . . . . . . . . . . . . . . . . Slashing 60 | . . . . . 19 5 . . . . . . . . . . . . 7 6 18 5 . Piercing 43 | . . . 7 4 31 . . . . 1 . . . . . . . . . . . . . Sneak Attacks 12 | . . . 1 . 4 1 . . . . . . . . . . . . . . 2 4 . Combat Hostiles . | . . . . . . . . . . . . . . . . . . . . . . . . Follow-up Attacks 1 | . . . . . . . . . . . . . . . . . . . . . . 1 . Damage Inflicted 37910 | 157 951 1665 996 349 769 5067 805 1361 4701 2295 . 66 . 903 2179 256 902 4766 . 419 1525 7778 . Guns 19969 | 157 579 585 . . 229 4881 805 1361 4095 2207 . 66 . 903 1663 256 643 . . 419 821 299 . Cannons 3510 | . . 902 873 . . . . . . . . . . . . . 259 271 . . . 1205 . Explosions 11523 | . 372 178 . 349 . . . . 588 64 . . . . 460 . . 4495 . . 353 4664 . Melee 2061 | . . . 123 . 540 186 . . . . . . . . . . . . . . 351 861 . Ramming 246 | . . . . . . . . . 18 24 . . . . 56 . . . . . . 148 . Kinetic 14575 | 157 579 183 . 349 88 2840 231 1186 2288 1393 . 66 . 903 1663 256 643 . . 419 568 763 . Thermal 9583 | . 173 1304 873 . 141 2041 574 175 1807 878 . . . . 230 . . . . . 353 1034 . Explosive 4860 | . 199 178 . . . . . . . . . . . . . . . . . . . 4483 . Electromagnetic 1077 | . . . . . . . . . 588 . . . . . 230 . 259 . . . . . . Impact . | . . . . . . . . . . . . . . . . . . . . . . . . Slashing 1647 | . . . . . 392 186 . . . . . . . . . . . . . . 248 821 . Piercing 271 | . . . 123 . 148 . . . . . . . . . . . . . . . . . . Entropic 5651 | . . . . . . . . . . . . . . . . . . 4766 . . 356 529 . Highest Corruption 13 | . . . . . 1 1 1 1 11 2 2 4 4 . 2 2 2 . . . 2 11 13 Average Corruption 2 | . . . . . 1 1 1 1 6 1 2 3 3 . 1 2 1 . . . 1 6 11 Corruption Purged 7 | . . . . . . . . 1 . . . . 4 . . . 2 . . . . . . Corruption Blocked . | . . . . . . . . . . . . . . . . . . . . . . . . Effects 102 | . . . . . 1 10 5 1 17 8 9 6 2 . 1 6 3 . . . 2 24 7 Message Errors 18 | . . . . . . 2 3 . 2 2 2 1 1 . . 1 1 . . . . 3 . Matter Fused 26 | . . . . . . 4 . . 4 1 4 1 . . 1 3 1 . . . 1 6 . Heat Flow Errors 11 | . . . . . . 1 . 1 2 2 . 1 . . . 1 . . . . . 2 1 Energy Discharges 14 | . . . . . . . 1 . 2 1 1 2 . . . . 1 . . . . 4 2 Parts Rejected 2 | . . . . . . . . . 1 . . . . . . . . . . . . 1 . Data Loss (minor) 10 | . . . . . . 2 1 . 2 . 1 . . . . . . . . . 1 2 1 Data Loss (major) 7 | . . . . . . 1 . . . 2 . . . . . 1 . . . . . 3 . Misfires 3 | . . . . . 1 . . . . . . 1 . . . . . . . . . 1 . Alerts 4 | . . . . . . . . . 1 . 1 . 1 . . . . . . . . . 1 Misdirections 3 | . . . . . . . . . . . . . . . . . . . . . . 1 2 Weapon Failures 4 | . . . . . . . . . 3 . . . . . . . . . . . . 1 . Overload Shots . | . . . . . . . . . . . . . . . . . . . . . . . . Overflow Damage 839 | . . . 41 . 51 75 . . 37 . . . . . 61 . . 209 . . 61 304 . Projectiles 199 | . . . 41 . . . . . . . . . . . . . . 81 . . . 77 . Explosions 378 | . . . . . . . . . 37 . . . . . 38 . . 128 . . 61 114 . Melee 262 | . . . . . 51 75 . . . . . . . . 23 . . . . . . 113 . Knockbacks 1 | . . . . . . . . . . 1 . . . . . . . . . . . . . Impact 1 | . . . . . . . . . . 1 . . . . . . . . . . . . . Kinetic . | . . . . . . . . . . . . . . . . . . . . . . . . Secondary . | . . . . . . . . . . . . . . . . . . . . . . . . Self-Inflicted Damage 308 | . . 1 . 37 . . . . 128 . . . . . 6 . . 136 . . . . . Shots 7 | . . 1 . 1 . . . . 2 . . . . . 2 . . 1 . . . . . Rammed 5 | . . . . . . . . . 1 . . . . . . . . . . . . 4 . Targets Rammed 27 | . . . . . . . . . 3 3 . . . . 2 . . . . . . 19 . Kicked 22 | . . . . . . . . . 2 3 . . . . 2 . . . . . . 15 . Crushed . | . . . . . . . . . . . . . . . . . . . . . . . . Highest Temperature 405 | . 5 110 292 47 256 390 320 83 405 260 . 243 . . . 128 . . . . . 229 . Average Temperature 81 | . 2 33 114 18 94 95 158 24 92 43 . 97 . . . 92 . . . . . 41 . Received Heat Transfer 2218 | . 144 126 36 6 60 420 . 54 627 111 . . . . 30 . 39 9 9 9 . 493 45 Effects 3 | . . . 1 . . 1 . . 1 . . . . . . . . . . . . . . Shutdowns 1 | . . . . . . . . . 1 . . . . . . . . . . . . . . Energy Bleed 1 | . . . . . . 1 . . . . . . . . . . . . . . . . . Interference 1 | . . . 1 . . . . . . . . . . . . . . . . . . . . Siege Activations 11 | . . . . . . . 1 3 7 . . . . . . . . . . . . . . Total Turns 422 | . . . . . . . 33 94 295 . . . . . . . . . . . . . . Longest Duration 90 | . . . . . . . 33 55 90 . . . . . . . . . . . . . . Martial Activations . | . . . . . . . . . . . . . . . . . . . . . . . . Shielding Activations . | . . . . . . . . . . . . . . . . . . . . . . . . Robots Disrupted 2 | . . . . . . . . . . . . . . . 1 . . . . . . 1 . Combat Hostiles 2 | . . . . . . . . . . . . . . . 1 . . . . . . 1 . Robots Corrupted 5 | . . . . . . . . . . . . . . . 2 . 2 . . . . 1 . Combat Hostiles 2 | . . . . . . . . . . . . . . . . . 2 . . . . . . Parts Fried 8 | . . . . . . . . . 4 . . . . . 1 . 2 . . . . 1 . Impact Corruptions 2 | . . . . . . . . . . . . . . . 1 . . . . . . 1 . Robots Melted 3 | . . 1 . . . . . . 1 . . . . . . . . . . . . 1 . Combat Hostiles 3 | . . 1 . . . . . . 1 . . . . . . . . . . . . 1 . Parts Melted 27 | . . 7 1 . 2 13 . . 3 . . . . . . . . . . . . 1 . Heat Transferred 15386 | . 150 2321 1184 . 350 5350 1377 222 2256 1049 . . . . 100 . . . . . 250 777 . Parts Sabotaged . | . . . . . . . . . . . . . . . . . . . . . . . . Parts Stolen . | . . . . . . . . . . . . . . . . . . . . . . . . Parts Stripped 36 | . . . . . . . . . . . . . . . . . . . . . . 36 . Power Chain Reactions 1 | . . . . . . . . . 1 . . . . . . . . . . . . . . Alert | -11 -10 -10 -8 -8 -6 -6 -6 -6 -6 -5 -5 -5 -5 -4 -4 -4 -4 -4 -3 -3 -3 -2 -2 ------- Run | Yrd Mat Sub Rec Scr Fac Ext Cet Arc Hub Fac Upp Upp Zhi Pro Fac Upp Upp War Pro Res Qua Res Tes Maximum Alert Level 4 | . . . . . . 2 1 . 2 1 . . . . 1 . . . . . 1 4 2 Low Security (%) 85 | 100 100 . 100 . 100 15 33 100 57 52 . . . . 95 . . . . 100 98 51 . Level 1 7 | . . . . . . 31 66 . 26 47 . . . . 4 . . . . . 1 4 . Level 2 5 | . . . . . . 52 . . 15 . . . . . . . . . . . . 15 100 Level 3 1 | . . . . . . . . . . . . . . . . . . . . . . 25 . Level 4 . | . . . . . . . . . . . . . . . . . . . . . . 2 . Level 5 . | . . . . . . . . . . . . . . . . . . . . . . . . High Security . | . . . . . . . . . . . . . . . . . . . . . . . . Max Security . | . . . . . . . . . . . . . . . . . . . . . . . . Peak Influence 1143 | 5 196 . 70 . 164 657 392 96 596 338 . . . . 288 . . . . 12 201 1143 639 Initial 594 | . . . . . . 55 362 65 . 279 . . . . 18 . . . . . . 66 594 Average 83 | . 75 . 19 . 44 372 216 1 178 221 . . . . 43 . . . . . 80 378 607 Influence Increases 8247 | 10 532 90 405 . 504 1324 229 163 892 743 . 30 . 80 433 90 310 130 15 36 330 1781 120 Destroy 0b10 Robot/C 3580 | . 180 80 160 . 180 800 160 80 340 160 . 20 . 60 120 80 240 120 . . 100 700 . Destroy 0b10 Robot/NC 465 | 10 35 . 25 . 10 55 10 45 65 25 . . . . 55 . . 10 . 10 15 95 . Destroy Leader 652 | . 46 10 . . 42 124 . . 82 42 . 10 . 20 38 10 40 . . 2 10 176 . Allied During Kill 324 | . . . 8 . 22 113 51 9 4 . . . . . . . . . . . . 117 . Trap Triggered on 0b10 10 | . . . . . . 10 . . . . . . . . . . . . . . . . . Successful Hack 421 | . 24 . 30 . 68 21 . . . 158 . . . . 26 . . . . 12 46 36 . Select Force Hacks 230 | . 60 . 120 . . . . . 50 . . . . . . . . . . . . . . Disable Machine 630 | . 135 . . . 45 45 . 15 90 90 . . . . 90 . . . . . 30 90 . Anti-Garrison Action 150 | . . . . . . . . . . . . . . . . . . . . . . 150 . Destroy Structure 1035 | . 22 . 62 . 32 81 8 14 216 178 . . . . 74 . . . . 12 84 252 . Partial Spotted 45 | . . . . . 15 . . . . . . . . . . . . . . . . . 30 Lose Combat Pursuer 705 | . 30 . . . 90 75 . . 45 90 . . . . 30 . 30 . 15 . 45 165 90 Influence Decreases 7663 | 10 480 142 405 . 390 790 714 326 322 1174 139 30 . 49 176 362 326 18 127 36 211 842 594 Entered New Map 1566 | . . 26 . . . 59 286 98 . 291 52 . . . 13 108 4 . 112 . . 53 464 Time Decay 4686 | 10 480 116 365 . 310 561 198 188 291 553 87 30 . 49 153 254 292 18 15 36 181 419 80 Lost Part 441 | . . . 40 . . 30 50 . 11 10 . . . . 10 . 30 . . . 30 190 40 Lost Ally 670 | . . . . . 80 140 180 40 20 20 . . . . . . . . . . . 180 10 Purge Threat 300 | . . . . . . . . . . 300 . . . . . . . . . . . . . Squads Dispatched 66 | . 4 . . . 8 5 . . 7 10 . . . . 3 . . . . 6 3 19 1 Investigation 20 | . 2 . . . 4 1 . . 2 4 . . . . . . . . . 3 1 3 . Extermination 15 | . . . . . 2 . . . 2 3 . . . . 1 . . . . . 2 4 1 Reinforcement 21 | . 2 . . . 2 4 . . 2 3 . . . . 2 . . . . 3 . 3 . Assault 5 | . . . . . . . . . 1 . . . . . . . . . . . . 4 . Garrison 5 | . . . . . . . . . . . . . . . . . . . . . . 5 . Intercept . | . . . . . . . . . . . . . . . . . . . . . . . . Searches Triggered . | . . . . . . . . . . . . . . . . . . . . . . . . Construction Impeded 7 | . . . . . . 2 . . 1 1 . . . . 2 . . . . . . 1 . Haulers Reinforced 2 | . . . . . 1 . . . . 1 . . . . . . . . . . . . . Active Scanning Responses . | . . . . . . . . . . . . . . . . . . . . . . . . Cargo Convoy Interrupts . | . . . . . . . . . . . . . . . . . . . . . . . . Stealth | -11 -10 -10 -8 -8 -6 -6 -6 -6 -6 -5 -5 -5 -5 -4 -4 -4 -4 -4 -3 -3 -3 -2 -2 --------- Run | Yrd Mat Sub Rec Scr Fac Ext Cet Arc Hub Fac Upp Upp Zhi Pro Fac Upp Upp War Pro Res Qua Res Tes Distress Signals 22 | . 2 . . . 2 . 2 . 3 1 . . . . 3 . . . . 6 . 2 1 Communications Jammed . | . . . . . . . . . . . . . . . . . . . . . . . . Distress Signals . | . . . . . . . . . . . . . . . . . . . . . . . . Times Spotted 381 | . 19 20 7 6 20 51 11 17 39 16 . 1 . 10 15 4 18 11 1 19 19 61 16 Peak Tracking Total 13 | . 4 6 3 4 3 8 5 2 13 5 . 1 . 6 10 4 4 5 1 8 7 9 6 Tactical Retreats 36 | . 1 1 . . 5 5 . . 3 5 . . . . 2 . 2 . 1 . 2 6 3 Traps | -11 -10 -10 -8 -8 -6 -6 -6 -6 -6 -5 -5 -5 -5 -4 -4 -4 -4 -4 -3 -3 -3 -2 -2 ------- Run | Yrd Mat Sub Rec Scr Fac Ext Cet Arc Hub Fac Upp Upp Zhi Pro Fac Upp Upp War Pro Res Qua Res Tes Traps Triggered 12 | . . . . . 2 1 . . 1 . . . . . 1 . . . . 3 1 3 . Indirectly 1 | . . . . . . . . . 1 . . . . . . . . . . . . . . Trap Hack Attempts . | . . . . . . . . . . . . . . . . . . . . . . . . Triggered . | . . . . . . . . . . . . . . . . . . . . . . . . Disarmed . | . . . . . . . . . . . . . . . . . . . . . . . . Reprogrammed . | . . . . . . . . . . . . . . . . . . . . . . . . Reused 1 | . . . . . . 1 . . . . . . . . . . . . . . . . . Traps Extracted . | . . . . . . . . . . . . . . . . . . . . . . . . Installed 1 | . . . . . . 1 . . . . . . . . . . . . . . . . . Triggered 1 | . . . . . . 1 . . . . . . . . . . . . . . . . . Most Traps Carried 1 | . . . . 1 1 1 . . . . . . . . . . . . . . . . . Machines | -11 -10 -10 -8 -8 -6 -6 -6 -6 -6 -5 -5 -5 -5 -4 -4 -4 -4 -4 -3 -3 -3 -2 -2 ---------- Run | Yrd Mat Sub Rec Scr Fac Ext Cet Arc Hub Fac Upp Upp Zhi Pro Fac Upp Upp War Pro Res Qua Res Tes Machines Disabled 53 | . 9 1 . 4 3 7 . 1 6 6 . . . . 6 . . 1 . . 2 7 . Max in Single Turn 8 | . 8 1 . 1 1 2 . 1 2 3 . . . . 3 . . 1 . . 1 1 . Garrison Access 5 | . . . . . 2 . . . . . . . . . 1 . . . . 1 . 1 . Network Hub 3 | . . . . . . . . . 3 . . . . . . . . . . . . . . Energy Cycler 2 | . . . . . . 2 . . . . . . . . . . . . . . . . . Machines Repaired . | . . . . . . . . . . . . . . . . . . . . . . . . Machines Dismantled . | . . . . . . . . . . . . . . . . . . . . . . . . Machines Sabotaged 1 | . . . . . . . . . 1 . . . . . . . . . . . . . . Overloaded Fab Kills . | . . . . . . . . . . . . . . . . . . . . . . . . Hacking | -11 -10 -10 -8 -8 -6 -6 -6 -6 -6 -5 -5 -5 -5 -4 -4 -4 -4 -4 -3 -3 -3 -2 -2 --------- Run | Yrd Mat Sub Rec Scr Fac Ext Cet Arc Hub Fac Upp Upp Zhi Pro Fac Upp Upp War Pro Res Qua Res Tes Machines Accessed 91 | . 9 2 10 5 16 8 . . 2 12 1 . 4 . 4 . . 2 . 5 3 7 1 Terminals 44 | . 6 . 6 . 7 7 . . 2 6 1 . . . 1 . . . . 2 2 3 1 Fabricators 3 | . . . . . 1 . . . . 1 . . . . . . . . . 1 . . . Repair Stations 5 | . 1 . . . . . . . . 2 . . . . 1 . . . . . . 1 . Recycling Units 14 | . 2 . 4 . 2 1 . . . 2 . . . . . . . . . 1 . 2 . Scanalyzers 6 | . . . . . 3 . . . . 1 . . . . 1 . . . . . 1 . . Garrison Access 6 | . . . . . 3 . . . . . . . . . 1 . . . . 1 . 1 . Total Hacks 307 | . 28 4 14 18 55 28 . . 3 72 1 . 17 . 12 . . 7 . 13 9 24 2 Successful 181 | . 19 4 12 18 23 10 . . 1 42 1 . 17 . 7 . . 7 . 4 5 9 2 Failed 125 | . 9 . 2 . 32 18 . . 2 29 . . . . 5 . . . . 9 4 15 . Catastrophic 21 | . . . . . 5 2 . . 1 6 . . . . . . . . . 1 . 6 . Database Lockouts 1 | . . . . . . . . . . 1 . . . . . . . . . . . . . Manual 124 | . 17 . 14 . 19 19 . . 2 36 . . . . 2 . . . . 2 5 6 2 Terminals 173 | . 19 . 9 . 31 26 . . 3 50 1 . . . 5 . . . . 4 6 17 2 Fabricators 10 | . . . . . 5 . . . . 2 . . . . . . . . . 3 . . . Repair Stations 23 | . 7 . . . . . . . . 10 . . . . 3 . . . . . . 3 . Recycling Units 19 | . 2 . 5 . 3 2 . . . 3 . . . . . . . . . 2 . 2 . Scanalyzers 26 | . . . . . 13 . . . . 7 . . . . 3 . . . . . 3 . . Garrison Access 10 | . . . . . 3 . . . . . . . . . 1 . . . . 4 . 2 . Terminal Hacks 77 | . 2 4 1 18 3 1 . . . 16 1 . 17 . 2 . . 7 . . 1 4 . Record 23 | . . 3 . 13 . . . . . . 1 . 5 . . . . . . . 1 . . Part Schematic 9 | . . . 1 . 1 . . . . 3 . . 4 . . . . . . . . . . Robot Schematic 1 | . . . . . . . . . . 1 . . . . . . . . . . . . . Robot Analysis 9 | . . . . 4 . . . . . . . . 4 . 1 . . . . . . . . Prototype ID Bank 13 | . 1 . . . 1 . . . . 1 . . 4 . . . . 6 . . . . . Open Door 1 | . . . . . . . . . . . . . . . . . . 1 . . . . . Branch Access Points 2 | . . . . . 1 . . . . . . . . . 1 . . . . . . . . Machine Index 1 | . . . . . . . . . . 1 . . . . . . . . . . . . . Scanalyzer Index 1 | . . . . . . . . . . 1 . . . . . . . . . . . . . Alert Level 2 | . . . . . . . . . . 1 . . . . . . . . . . . 1 . Unreport Threat 2 | . . . . . . . . . . 2 . . . . . . . . . . . . . Locate Traps 5 | . 1 . . . . 1 . . . 3 . . . . . . . . . . . . . Security Status 1 | . . . . . . . . . . . . . . . . . . . . . . 1 . Investigation Status 1 | . . . . . . . . . . 1 . . . . . . . . . . . . . Recall Investigation 2 | . . . . . . . . . . 2 . . . . . . . . . . . . . Hauler Manifests 1 | . . . . . . . . . . . . . . . . . . . . . . 1 . Zone Layout 1 | . . . . . . . . . . . . . . . . . . . . . . 1 . Proto ID Catalog 2 | . . 1 . 1 . . . . . . . . . . . . . . . . . . . Fabricator Hacks 6 | . . . . . 2 . . . . 2 . . . . . . . . . 2 . . . Load Schematic 3 | . . . . . 1 . . . . 1 . . . . . . . . . 1 . . . Build 3 | . . . . . 1 . . . . 1 . . . . . . . . . 1 . . . Repair Station Hacks 14 | . 6 . . . . . . . . 5 . . . . 2 . . . . . . 1 . Scan Component 8 | . 3 . . . . . . . . 3 . . . . 1 . . . . . . 1 . Repair 6 | . 3 . . . . . . . . 2 . . . . 1 . . . . . . . . Recycling Unit Hacks . | . . . . . . . . . . . . . . . . . . . . . . . . Scanalyzer 8 | . . . . . 4 . . . . 1 . . . . 1 . . . . . 2 . . Insert Component 2 | . . . . . 1 . . . . 1 . . . . . . . . . . . . . Analyze 1 | . . . . . 1 . . . . . . . . . . . . . . . . . . Retrieve Study 5 | . . . . . 2 . . . . . . . . . 1 . . . . . 2 . . Garrison Access Hacks 4 | . . . . . 2 . . . . . . . . . 1 . . . . 1 . . . Seal Access 4 | . . . . . 2 . . . . . . . . . 1 . . . . 1 . . . Unauthorized Hacks 72 | . 11 . 11 . 12 9 . . 1 18 . . . . 1 . . . . 1 2 4 2 Terminals 59 | . 9 . 7 . 10 9 . . 1 16 . . . . 1 . . . . . 2 2 2 Track 4 | . 1 . . . 1 . . . . 1 . . . . . . . . . . 1 . . Assimilate 6 | . 2 . . . . 1 . . . 2 . . . . . . . . . . . . 1 Botnet 12 | . . . 2 . 4 2 . . . 3 . . . . . . . . . . . 1 . Disrupt 6 | . 1 . . . . 1 . . . 3 . . . . . . . . . . . . 1 Operators 3 | . . . . . . 1 . . . 2 . . . . . . . . . . . . . Skim 27 | . 5 . 5 . 5 4 . . . 5 . . . . 1 . . . . . 1 1 . Sabotage 1 | . . . . . . . . . 1 . . . . . . . . . . . . . . Fabricators . | . . . . . . . . . . . . . . . . . . . . . . . . Repair Stations . | . . . . . . . . . . . . . . . . . . . . . . . . Recycling Units 13 | . 2 . 4 . 2 . . . . 2 . . . . . . . . . 1 . 2 . Tunnel 6 | . 2 . 4 . . . . . . . . . . . . . . . . . . . . Fedlink 6 | . . . . . 1 . . . . 2 . . . . . . . . . 1 . 2 . Scrapoids 1 | . . . . . 1 . . . . . . . . . . . . . . . . . . Scanalyzers . | . . . . . . . . . . . . . . . . . . . . . . . . Garrison Access . | . . . . . . . . . . . . . . . . . . . . . . . . Data Cores Recovered . | . . . . . . . . . . . . . . . . . . . . . . . . Used . | . . . . . . . . . . . . . . . . . . . . . . . . Hacking Detections 48 | . 7 . 4 . 11 6 . . 1 8 . . . . 1 . . . . 3 2 5 . Full Trace Events 7 | . . . . . 2 1 . . . 2 . . . . . . . . . 1 . 1 . Feedback Events . | . . . . . . . . . . . . . . . . . . . . . . . . Feedback Blocked . | . . . . . . . . . . . . . . . . . . . . . . . . Robot Schematics Acquired 1 | . . . . . . . . . . 1 . . . . . . . . . . . . . Robots Built . | . . . . . . . . . . . . . . . . . . . . . . . . Authchips . | . . . . . . . . . . . . . . . . . . . . . . . . Time . | . . . . . . . . . . . . . . . . . . . . . . . . Total Robot Build Rating . | . . . . . . . . . . . . . . . . . . . . . . . . Part Schematics Acquired 10 | . . . 1 . 2 . . . . 3 . . 4 . . . . . . . . . . Parts Built 3 | . . . . . 1 . . . . 1 . . . . . . . . . 1 . . . Authchips . | . . . . . . . . . . . . . . . . . . . . . . . . Time 225 | . . . . . 73 . . . . 76 . . . . . . . . . 76 . . . Total Part Build Rating 13 | . . . . . 3 . . . . 5 . . . . . . . . . 5 . . . Part Studies Acquired 5 | . . . . . 2 . . . . . . . . . 1 . . . . . 2 . . Parts Repaired 5 | . 3 . . . . . . . . 2 . . . . . . . . . . . . . Time 268 | . 78 . . . . . . . . 136 . . . . 54 . . . . . . . . Parts Recycled . | . . . . . . . . . . . . . . . . . . . . . . . . Recycled Matter . | . . . . . . . . . . . . . . . . . . . . . . . . Retrieved Matter . | . . . . . . . . . . . . . . . . . . . . . . . . Retrieved Components . | . . . . . . . . . . . . . . . . . . . . . . . . Parts Scanalyzed 2 | . . . . . 1 . . . . 1 . . . . . . . . . . . . . Part Schematics Acquired 1 | . . . . . 1 . . . . . . . . . . . . . . . . . . Parts Damaged . | . . . . . . . . . . . . . . . . . . . . . . . . Bothacking | -11 -10 -10 -8 -8 -6 -6 -6 -6 -6 -5 -5 -5 -5 -4 -4 -4 -4 -4 -3 -3 -3 -2 -2 ------------ Run | Yrd Mat Sub Rec Scr Fac Ext Cet Arc Hub Fac Upp Upp Zhi Pro Fac Upp Upp War Pro Res Qua Res Tes Used RIF Installer . | . . . . . . . . . . . . . . . . . . . . . . . . Robots Hacked . | . . . . . . . . . . . . . . . . . . . . . . . . Non-combat . | . . . . . . . . . . . . . . . . . . . . . . . . Combat . | . . . . . . . . . . . . . . . . . . . . . . . . Robot Hacks Applied . | . . . . . . . . . . . . . . . . . . . . . . . . Relay Couplers Released 2 | . . . . . . . . . . . . . . . . . . . . . . 2 . Machine Destruction 2 | . . . . . . . . . . . . . . . . . . . . . . 2 . Fabnet Peak Effective % . | . . . . . . . . . . . . . . . . . . . . . . . . Robots Rewired 20 | . . . 4 . . 15 . . . . . . . . . . . . . . . 1 . Allies Hacked . | . . . . . . . . . . . . . . . . . . . . . . . . Hacks Repelled . | . . . . . . . . . . . . . . . . . . . . . . . . Allies | -11 -10 -10 -8 -8 -6 -6 -6 -6 -6 -5 -5 -5 -5 -4 -4 -4 -4 -4 -3 -3 -3 -2 -2 -------- Run | Yrd Mat Sub Rec Scr Fac Ext Cet Arc Hub Fac Upp Upp Zhi Pro Fac Upp Upp War Pro Res Qua Res Tes Total Allies 47 | . 1 . 4 . 5 18 . . . 2 . . . . . . . . . . . 16 1 Largest Group 12 | . 1 . 4 4 5 12 11 2 . 1 . . . . . . . . . . . 10 1 Highest-Rated Group 333 | . 10 . 59 59 143 333 299 59 . 26 . . . . . . . . . . . 143 10 Highest-Rated Ally 69 | . 10 . 34 34 31 39 39 39 . 26 . . . . . . . . . . . 69 10 Initial UFD Resources 80 | . . . . . 23 30 30 30 30 32 46 46 46 49 49 49 49 49 52 52 62 66 80 Total Orders 44 | . 4 . 6 26 3 3 . 2 . . . . . . . . . . . . . . . STAY 22 | . 2 . 3 12 2 2 . 1 . . . . . . . . . . . . . . . FOLLOW 12 | . 2 . 1 6 1 1 . 1 . . . . . . . . . . . . . . . DROP 3 | . . . . 3 . . . . . . . . . . . . . . . . . . . PICKUP 7 | . . . 2 5 . . . . . . . . . . . . . . . . . . . Ally Attacks 257 | . . . 17 8 44 56 38 1 25 . . . . . . . . . . . . 68 . Total Damage 5125 | . . . 228 50 812 712 778 31 1063 . . . . . . . . . . . . 1451 . Kills 38 | . . . 4 . 4 9 8 . 1 . . . . . . . . . . . . 12 . Allies Corrupted 1 | . . . . . . 1 . . . . . . . . . . . . . . . . . Allies Melted 8 | . . . . 6 . 1 . . . . . . . . . . . 1 . . . . . Turrets Deployed 1 | . . . . . . . . . 1 . . . . . . . . . . . . . . Intel | -11 -10 -10 -8 -8 -6 -6 -6 -6 -6 -5 -5 -5 -5 -4 -4 -4 -4 -4 -3 -3 -3 -2 -2 ------- Run | Yrd Mat Sub Rec Scr Fac Ext Cet Arc Hub Fac Upp Upp Zhi Pro Fac Upp Upp War Pro Res Qua Res Tes Active Infowar (turns) 37705 | 12 1745 2972 . 4835 1363 1667 400 12490 989 1604 801 371 108 1600 557 558 1148 209 1609 900 695 1070 2 Optics 21282 | . . . . 246 1360 1667 400 12490 647 . . . . . . . . 199 1609 900 695 1069 . Sensors 42 | . . . . 42 . . . . . . . . . . . . . . . . . . . IFF 24075 | . . . . 64 909 . 96 12490 989 1072 800 371 108 1600 557 558 1148 1 1609 900 318 485 . Terrain 2091 | . . . . 484 . . . . . 1603 4 . . . . . . . . . . . . Traps 1245 | . . . . 1245 . . . . . . . . . . . . . . . . . . . Seismic 4944 | 12 1745 2972 . . 215 . . . . . . . . . . . . . . . . . . Decoding 74 | . . . . 74 . . . . . . . . . . . . . . . . . . . Machine Analysis 63 | . . . . . . . . . . 63 . . . . . . . . . . . . . Cloaking 3810 | . . . . 30 . . . . . . . . . . . . . 208 1609 896 692 373 2 Spoofing 467 | . . . . 467 . . . . . . . . . . . . . . . . . . . Jamming 2183 | . . . . 2183 . . . . . . . . . . . . . . . . . . . Robot Analysis Total 9 | . . . . 4 . . . . . . . . 4 . 1 . . . . . . . . Derelict Logs Recovered 8 | . . 2 . . . . . . . . 2 1 . 2 . . 1 . . . . . . Drone Launches . | . . . . . . . . . . . . . . . . . . . . . . . . Drone Recoveries . | . . . . . . . . . . . . . . . . . . . . . . . . Exploration | -11 -10 -10 -8 -8 -6 -6 -6 -6 -6 -5 -5 -5 -5 -4 -4 -4 -4 -4 -3 -3 -3 -2 -2 ------------- Run | Yrd Mat Sub Rec Scr Fac Ext Cet Arc Hub Fac Upp Upp Zhi Pro Fac Upp Upp War Pro Res Qua Res Tes Turns Passed 64049 | 94 1745 5824 1418 25457 1364 1667 400 12490 1114 1604 801 371 283 1600 557 558 1191 999 1609 900 695 1139 169 Spaces Moved 27925 | 61 1061 3006 701 9030 1503 1816 175 1328 368 905 711 346 145 881 453 503 620 911 914 718 520 752 497 Core 7050 | 1 . . . 5736 . . 2 1204 . . . . . . . . . . . . . 64 43 Treads 1583 | . 474 526 . . . . 138 124 321 . . . . . . . . . . . . . . Legs 8848 | . . . . 473 . . 24 . 47 905 711 346 145 881 453 503 620 911 914 718 520 677 . Wheels 5451 | 60 587 2480 701 1623 . . . . . . . . . . . . . . . . . . . Hover 4529 | . . . . 1197 1503 1816 11 . . . . . . . . . . . . . . . 2 Flight 464 | . . . . 1 . . . . . . . . . . . . . . . . . 11 452 Fastest Speed 24 | 50 80 80 110 50 48 52 66 160 100 100 100 100 100 100 100 101 101 97 97 97 98 25 24 Average Speed 195 | 79 137 132 122 276 51 56 162 921 152 100 100 100 100 100 101 101 101 100 97 97 100 104 27 Slowest Speed 1000 | 80 240 240 155 700 122 126 500 1000 160 100 100 100 100 100 105 101 101 101 97 102 102 190 60 Overloaded Moves 1 | . . . . 1 . . . . . . . . . . . . . . . . . . . Propulsion Burnouts . | . . . . . . . . . . . . . . . . . . . . . . . . Robots Hopped 17 | . . . . . . . . . . . . . . . . . . . . 1 . 5 11 Potential Cave-ins 10 | . . . . . . 8 . . . . . . . . . 2 . . . . . . . Cave-ins Triggered . | . . . . . . . . . . . . . . . . . . . . . . . . Teleports 1 | . . . . . . . . . . . . . . 1 . . . . . . . . . Exploration Rate (%) 61 | 4 98 97 98 88 33 88 60 95 39 17 84 52 60 79 17 62 72 94 90 17 42 31 53 Regions Visited 23 Branch Regions 17 Pre-discovered Areas 16 | . 2 1 5 . 1 . . . . 1 1 1 3 1 . . . . . . . . . Known Exits Taken 14 | . . . . 1 1 . . . 1 1 1 1 1 1 1 1 1 . 1 1 1 . . Unknown Exits Taken 9 | 1 1 1 1 . . 1 1 1 . . . . . . . . . 1 . . . 1 . Scrap Searched 18 | . . 5 . 4 . . . . . . 3 1 . 1 . . 3 . 1 . . . . Spaces Dug 182 | . . 7 . 1 25 17 . 1 6 32 . . . 34 . 15 11 . 7 6 10 10 . Terrain Destroyed 1340 | . 25 32 6 49 33 102 4 13 391 93 . 1 . 74 38 39 32 202 11 8 73 114 . Melee 51 | . . . . 1 24 . . . . 1 . . . . . . . . 7 5 10 3 . Projectile 449 | . . 10 6 . 9 91 4 13 40 57 . 1 . 74 13 39 32 . 4 3 34 19 . AOE 840 | . 25 22 . 48 . 11 . . 351 35 . . . . 25 . . 202 . . 29 92 . Terrain Rammed . | . . . . . . . . . . . . . . . . . . . . . . . . Walls Destroyed . | . . . . . . . . . . . . . . . . . . . . . . . . Machines Disabled . | . . . . . . . . . . . . . . . . . . . . . . . . Actions | -11 -10 -10 -8 -8 -6 -6 -6 -6 -6 -5 -5 -5 -5 -4 -4 -4 -4 -4 -3 -3 -3 -2 -2 --------- Run | Yrd Mat Sub Rec Scr Fac Ext Cet Arc Hub Fac Upp Upp Zhi Pro Fac Upp Upp War Pro Res Qua Res Tes Total 35823 | 85 1265 4667 1216 9550 2001 2320 261 1514 728 1470 801 368 283 1538 505 523 1135 983 1618 880 622 979 511 Wait 5998 | . 125 1476 401 447 389 159 29 124 185 410 87 19 120 628 21 6 470 9 689 112 32 49 11 Move 27871 | 60 1060 3005 700 9029 1502 1815 174 1327 367 904 710 345 144 880 452 502 619 910 913 715 519 743 476 Hop 14 | . . . . . . . . . . . . . . . . . . . . 1 . 3 10 Pick Up 137 | 9 14 27 7 29 5 4 6 2 4 11 . 1 2 . 2 . . 10 . 1 2 1 . Fast Attach 141 | 6 3 5 2 7 4 2 8 2 8 7 1 . 7 . 4 . 1 16 2 9 7 29 11 Attach 61 | 1 . 2 3 3 10 2 2 . 6 8 . . 1 2 . 1 7 1 . . 1 10 1 Detach 26 | . . 1 . . 5 . . . 3 4 . . . . . . 8 3 . . . 1 1 Swap 119 | . 15 34 1 . 7 9 1 3 3 18 1 1 1 1 . 1 1 1 1 9 5 6 . Drop 178 | . 7 18 5 25 7 8 10 5 11 9 2 1 8 . 3 . . 18 . 12 8 20 1 Fire 965 | 9 41 99 39 6 22 207 31 51 138 95 . 1 . 27 20 13 29 15 6 14 28 74 . Melee 123 | . . . 7 4 50 5 . . . 1 . . . . . . . . 7 6 20 23 . Ram 4 | . . . . . . . . . . . . . . . . . . . . . . 4 . Kick 22 | . . . . . . . . . 2 3 . . . . 2 . . . . . . 15 . Crush 1 | . . . . . . . . . 1 . . . . . . . . . . . . . . Escape Stasis 13 | . . . . . . 13 . . . . . . . . . . . . . . . . . Rewire 148 | . . . 51 . . 95 . . . . . . . . 1 . . . . . . 1 . Trap 1 | . . . . . . 1 . . . . . . . . . . . . . . . . . Miscellaneous 1 | . . . . . . . . . . . . . . . . . . . . 1 . . . Route ------- -11/Scrapyard -10/Materials (discovered 6 exits: [*Mat x3] / [*Min x2] / *Sub) -10/Subcaves (discovered 3 exits: [*Mat x2] / *Rec) -8/Recycling (discovered 2 exits: *Fac / *Scr) -8/Scraptown (discovered 2 exits: *Fac x2) -6/Factory (discovered 7 exits: *Fac x3 / *Low x2 / *Ext x2) -6/Extension (discovered 2 exits: *Fac / [*Cet]) -6/Cetus (discovered 2 exits: *Fac / [*Arc]) -6/Archives (discovered 3 exits: *Fac / *Hub x2) -6/Hub_04(d) (discovered 2 exits: *Fac x2) -5/Factory (discovered 5 exits: Fac x3 / *Upp x2) -5/Upper Caves -5/Upper Caves -5/Zhirov -4/Proximity Caves -4/Factory (discovered 4 exits: Res / *Upp x2 / Arm) -4/Upper Caves -4/Upper Caves (discovered 2 exits: *Res / *War) -4/Warlord -3/Proximity Caves -3/Research (discovered 3 exits: *Res / *Qua x2) -3/Quarantine -2/Research -2/Testing History --------- Turn | Location | Event 7 | -11/Scrapyard | Discovered new exit (range 15) 95 | -11/Scrapyard | Entered Materials 96 | -10/Materials | Met a group of wandering Federalists 232 | -10/Materials | Discovered new exit (range 14) 273 | -10/Materials | Discovered new exit (range 11) 313 | -10/Materials | Build established: Mutant 476 | -10/Materials | Discovered new exit (range 10) 834 | -10/Materials | Discovered new exit (range 6) 883 | -10/Materials | Discovered new exit (range 11) 1280 | -10/Materials | Discovered new exit (range 9) 1630 | -10/Materials | Repaired Assault Rifle 1657 | -10/Materials | Repaired Assault Rifle 1685 | -10/Materials | Repaired Lgt. Treads 1840 | -10/Materials | Entered Subcaves 1840 | -10/Subcaves | Accompanied by 1 ally 2796 | -10/Subcaves | Discovered new exit (range 16) 3153 | -10/Subcaves | Shifting Twisted Machinery released Sub. Shrapnel Launcher 3156 | -10/Subcaves | Shifting Twisted Machinery released Sub. Power Source 3181 | -10/Subcaves | Visited Clippyterm 3184 | -10/Subcaves | Learned location of Extension (-6) 3184 | -10/Subcaves | Learned 40 Factory zone layouts 3393 | -10/Subcaves | Learned 2 Materials zone layouts 3677 | -10/Subcaves | Build established: Scavenger-Mutant 3804 | -10/Subcaves | Discovered new exit (range 15) 4030 | -10/Subcaves | Shifting Twisted Machinery released Battle Rifle 4059 | -10/Subcaves | Shifting Twisted Machinery released Barrage Gun 4332 | -10/Subcaves | Visited 4L-MR0's lab 4338 | -10/Subcaves | Learned 4 Materials zone layouts 4403 | -10/Subcaves | Found Tower Shield 4405 | -10/Subcaves | Attached Tower Shield, gained temporary slots: Power, Propulsion x2, Utility x2, Weapon x2 4668 | -10/Subcaves | Disturbed a concealed Subdweller 6859 | -10/Subcaves | Discovered new exit (range 5) 7269 | -10/Subcaves | Found Prototype Device 7664 | -10/Subcaves | Entered Recycling 7702 | -8/Recycling | Core integrity fell below 50% 7747 | -8/Recycling | Lost 3 parts (1p1n1w) 8101 | -8/Recycling | Build established: Commander-Mutant 8295 | -8/Recycling | Discovered new exit (range 16) 8484 | -8/Recycling | Learned location of 1 exit from Storage 8689 | -8/Recycling | Learned Factory security intel 8781 | -8/Recycling | Learned Storage stockpile data 8791 | -8/Recycling | Scanned before Scraplab entrance 8810 | -8/Recycling | Entered Scraplab 8821 | -8/Recycling | Discovered new exit (range 3) 8852 | -8/Recycling | Learned Factory emergency access door positions 8969 | -8/Recycling | Learned 4 Factory zone layouts 9044 | -8/Recycling | Learned Storage terminal intel 9082 | -8/Recycling | Entered Scraptown 9082 | -8/Scraptown | Accompanied by 4 allies 9083 | -8/Scraptown | Identified exit to Factory 9241 | -8/Scraptown | Visited Cyclists 9261 | -8/Scraptown | Visited Spacefarers 9363 | -8/Scraptown | Heard Great Nut preacher, LISTEN AND RECITE! 9414 | -8/Scraptown | Visited Science Testing Area 9424 | -8/Scraptown | Visited Comm Corps 9466 | -8/Scraptown | Visited Cave Peace 9517 | -8/Scraptown | Visited UFD Registry 9517 | -8/Scraptown | Registered with UFD as "Maceeater" 9538 | -8/Scraptown | Visited Fellowship of the Rings 9556 | -8/Scraptown | Visited The Evicted 9756 | -8/Scraptown | Visited Modified Component R&D 9816 | -8/Scraptown | Visited Scrap Suit Storage 9841 | -8/Scraptown | Visited Scrapoid Pod Storage 9879 | -8/Scraptown | Visited Infowarlord's Domain 9913 | -8/Scraptown | Visited Supply Room 9940 | -8/Scraptown | Visited Curators Association 9998 | -8/Scraptown | Delivered Scrap Shield to a Scientist 10106 | -8/Scraptown | Visited Analyses Database 10134 | -8/Scraptown | Visited Science Guys 10172 | -8/Scraptown | Visited Scrapoid Research Area 10378 | -8/Scraptown | Found Spectral Analyzer 11197 | -8/Scraptown | Identified Sfc. Transmogrifier 11409 | -8/Scraptown | Entered Cyclist Reading Room 33251 | -8/Scraptown | Found Scrap Suit 34008 | -8/Scraptown | Met Optimus 34008 | -8/Scraptown | Accepted into 0bPrime 34408 | -8/Scraptown | Civil war broke out across Scraptown 34413 | -8/Scraptown | Found DM-GVY's Chainsaw 34427 | -8/Scraptown | Found Surveybot 24 Chip 34435 | -8/Scraptown | Found Deploy-a-Sentry 34476 | -8/Scraptown | Lost 6 allies 34539 | -8/Scraptown | Entered Factory 34539 | -6/Factory | Evolved 8 slots: Propulsion x2, Utility x5, Weapon x1 34540 | -6/Factory | Identified exit to Lower Caves 34540 | -6/Factory | Identified exit to Extension 34540 | -6/Factory | Identified exit to Factory 34544 | -6/Factory | Lost 4 allies 34707 | -6/Factory | Build established: Mutant 34762 | -6/Factory | Fabricated Hacking Suite? 34820 | -6/Factory | Discovered exit to Factory (range 5) 35095 | -6/Factory | Loaded intel: 8 recycling unit locations 35308 | -6/Factory | Discovered exit to Factory (range 11) 35652 | -6/Factory | Scrapoid reinforcements arrived 35903 | -6/Factory | Entered Extension 35903 | -6/Extension | Accompanied by 1 ally 35972 | -6/Extension | Energy Cycler disabled 35972 | -6/Extension | Rescued a captive Derelict 35972 | -6/Extension | Rescued a captive Derelict 35973 | -6/Extension | Rescued a captive Derelict 35974 | -6/Extension | Rescued a captive Derelict 35976 | -6/Extension | Rescued a captive Derelict 35978 | -6/Extension | Rescued a captive Derelict 35984 | -6/Extension | Rescued a captive Derelict 35986 | -6/Extension | Rescued a captive Derelict 36184 | -6/Extension | Lost 4 allies 36193 | -6/Extension | Destroyed 8 combat bots 36230 | -6/Extension | Spotted B-75 Beast 36678 | -6/Extension | Disrupted transfer network 36699 | -6/Extension | Spotted B-75 Beast 37473 | -6/Extension | Discovered exit to Factory (range 10) 37474 | -6/Extension | Discovered new exit (range 6) 37570 | -6/Extension | Entered Cetus 37570 | -6/Cetus | Accompanied by 11 allies 37578 | -6/Cetus | Spotted Cetus Guard 37578 | -6/Cetus | Spotted Cetus Guard 37582 | -6/Cetus | Spotted Cetus Guard 37586 | -6/Cetus | Spotted Cetus Guard 37588 | -6/Cetus | Build established: Commander-Mutant 37591 | -6/Cetus | Destroyed Cetus Guard 37599 | -6/Cetus | Allies destroyed Cetus Guard 37624 | -6/Cetus | Allies destroyed Cetus Guard 37624 | -6/Cetus | Allies destroyed Cetus Guard 37644 | -6/Cetus | Lost 5 parts (2n1u2w) 37651 | -6/Cetus | Lost 8 allies 37754 | -6/Cetus | Discovered new exit (range 24) 37793 | -6/Cetus | Spotted Cetus Guard 37793 | -6/Cetus | Spotted Cetus Guard 37809 | -6/Cetus | Spotted Cetus Guard 37815 | -6/Cetus | Allies destroyed Cetus Guard 37819 | -6/Cetus | Allies destroyed Cetus Guard 37823 | -6/Cetus | Allies destroyed Cetus Guard 37824 | -6/Cetus | Spotted Cetus Guard 37833 | -6/Cetus | Destroyed Cetus Guard 37843 | -6/Cetus | Discovered exit to Factory (range 24) 37866 | -6/Cetus | Met Revision 17 37970 | -6/Cetus | Entered Archives 37970 | -6/Archives | Accompanied by 2 allies 37993 | -6/Archives | Build established: Scavenger-Tank 38141 | -6/Archives | Discovered new exit (range 22) 38192 | -6/Archives | Discovered new exit (range 24) 38350 | -6/Archives | Discovered exit to Factory (range 17) 50460 | -6/Archives | Entered Hub_04(d) 50625 | -6/Hub_04(d) | Discovered exit to Factory (range 4) 50970 | -6/Hub_04(d) | Network Hub disabled 51028 | -6/Hub_04(d) | Spotted Lightning 51029 | -6/Hub_04(d) | Spotted Lightning 51036 | -6/Hub_04(d) | Spotted Lightning 51052 | -6/Hub_04(d) | Destroyed Lightning 51079 | -6/Hub_04(d) | Attached CPS modules to Lightning 51109 | -6/Hub_04(d) | Destroyed Lightning 51283 | -6/Hub_04(d) | Found Prototype Energy Cannon 51286 | -6/Hub_04(d) | Found Prototype Device 51286 | -6/Hub_04(d) | Identified Exp. EM Shield 51293 | -6/Hub_04(d) | Found Prototype Processor 51293 | -6/Hub_04(d) | Identified Exp. Targeting Computer 51297 | -6/Hub_04(d) | Found Prototype Device 51297 | -6/Hub_04(d) | Identified Exp. Phase Shifter 51373 | -6/Hub_04(d) | Destroyed Lightning 51380 | -6/Hub_04(d) | Found Hvy. Reactive Plating 51397 | -6/Hub_04(d) | Network Hub disabled 51418 | -6/Hub_04(d) | Discovered exit to Factory (range 12) 51440 | -6/Hub_04(d) | Spotted Lightning 51445 | -6/Hub_04(d) | Spotted Lightning 51446 | -6/Hub_04(d) | Spotted Lightning 51452 | -6/Hub_04(d) | System corruption reached 10% 51461 | -6/Hub_04(d) | Destroyed Lightning 51470 | -6/Hub_04(d) | DAS Turret deployed 51499 | -6/Hub_04(d) | Destroyed Lightning 51510 | -6/Hub_04(d) | First assault squad dispatched 51558 | -6/Hub_04(d) | Network Hub disabled 51574 | -6/Hub_04(d) | Entered Factory 51574 | -5/Factory | Evolved 2 slots: Utility x2 51626 | -5/Factory | Identified EMDS 51664 | -5/Factory | Repaired Quantum Reactor 51756 | -5/Factory | Discovered new exit (range 20) 51854 | -5/Factory | Repaired Adv. KE Penetrator? 52079 | -5/Factory | Identified exit to Upper Caves 52194 | -5/Factory | Central database locked down 52338 | -5/Factory | Build established: Scavenger-Skirmisher 52453 | -5/Factory | Watched by a mysterious "MATRIX" hacker 52484 | -5/Factory | Spotted B-75 Beast 52493 | -5/Factory | Loaded intel: 8 recycling unit locations 52493 | -5/Factory | Learned location of Protoforge (-2) 52523 | -5/Factory | Learned 8 Quarantine zone layouts 52581 | -5/Factory | Learned Armory non-interactive machine intel 52627 | -5/Factory | Loaded intel: 26 terminal locations 52663 | -5/Factory | Identified exit to Factory 52704 | -5/Factory | Learned Armory stockpile data 52763 | -5/Factory | Learned location of 1 exit from Testing 52839 | -5/Factory | Build established: Scavenger-Tank 53107 | -5/Factory | Fabricated Exp. Weapon Shielding? 53178 | -5/Factory | Entered Upper Caves 53180 | -5/Upper Caves | UFD Scientist delivered a prototype 53183 | -5/Upper Caves | Found Prototype Protection 53183 | -5/Upper Caves | Identified Enh. Scrap Shield 53229 | -5/Upper Caves | Learned location of 1 exit from Factory 53303 | -5/Upper Caves | Found DCF Scrap (12 items) 53470 | -5/Upper Caves | Build established: Scavenger-Gunner 53924 | -5/Upper Caves | Discovered new exit (range 4) 53975 | -5/Upper Caves | Identified exit to Upper Caves 53979 | -5/Upper Caves | Entered another Upper Caves area 54249 | -5/Upper Caves | Entered a destroyed Warlord outpost 54258 | -5/Upper Caves | Discovered new exit (range 14) 54281 | -5/Upper Caves | Identified exit to Zhirov 54350 | -5/Upper Caves | Entered Zhirov 54352 | -5/Zhirov | Discovered new exit (range 3) 54370 | -5/Zhirov | Met Zhirov 54388 | -5/Zhirov | Learned location of Quarantine (-3) 54388 | -5/Zhirov | Learned location of Command (-1) 54400 | -5/Zhirov | Zhirov requested help retrieving the SGEMP Prototype 54418 | -5/Zhirov | Found Alien Artifact 54418 | -5/Zhirov | Identified Integrated Dissipator 54418 | -5/Zhirov | Installed Integrated Dissipator, increased core heat dissipation (+20) 54507 | -5/Zhirov | Found Alien Artifact 54557 | -5/Zhirov | Identified exit to Proximity Caves 54633 | -5/Zhirov | Entered Proximity Caves 54640 | -4/Proximity Caves | Spotted B-86 Titan 54652 | -4/Proximity Caves | Identified Transdimensional Reconstructor 54652 | -4/Proximity Caves | Warped through subspace 55725 | -4/Proximity Caves | Learned Research garrison access intel 56187 | -4/Proximity Caves | Discovered exit to Factory (range 8) 56233 | -4/Proximity Caves | Entered Factory 56233 | -4/Factory | Evolved 2 slots: Power x1, Utility x1 56234 | -4/Factory | Identified exit to Research 56542 | -4/Factory | Discovered new exit (range 16) 56557 | -4/Factory | Identified exit to Upper Caves 56602 | -4/Factory | Identified exit to Armory 56790 | -4/Factory | Entered Upper Caves 56963 | -4/Upper Caves | Build established: Scavenger-Tank 57223 | -4/Upper Caves | Discovered new exit (range 6) 57228 | -4/Upper Caves | Identified exit to Upper Caves 57348 | -4/Upper Caves | Entered another Upper Caves area 57356 | -4/Upper Caves | Discovered exit to Research (range 10) 57439 | -4/Upper Caves | Spotted B-86 Titan 57720 | -4/Upper Caves | Learned location of 1 exit from Research 58023 | -4/Upper Caves | Discovered new exit (range 13) 58184 | -4/Upper Caves | Build established: Scavenger-Mutant 58538 | -4/Upper Caves | Identified exit to Warlord 58539 | -4/Upper Caves | Entered Warlord 58585 | -4/Warlord | Discovered new exit (range 8) 58762 | -4/Warlord | Found Prototype Special Weapon 58762 | -4/Warlord | Identified RU-N14's Throwing Claymores v3 58766 | -4/Warlord | Found RU-N14's Throwing Claymores v3 58768 | -4/Warlord | Found RU-N14's Throwing Claymores v3 58770 | -4/Warlord | Found RU-N14's Throwing Claymores v3 58772 | -4/Warlord | Found RU-N14's Throwing Claymores v3 58777 | -4/Warlord | Found RU-N14's Throwing Claymores v3 59036 | -4/Warlord | Warlord's base attacked by MAIN.C 59115 | -4/Warlord | Found Prototype Energy Gun 59115 | -4/Warlord | Identified Vortex Rail 59120 | -4/Warlord | Found Vortex Rail 59126 | -4/Warlord | Found Prototype Energy Cannon 59126 | -4/Warlord | Identified Vortex Driver 59132 | -4/Warlord | Found Prototype Launcher 59132 | -4/Warlord | Identified Vortex Catalyst Activator 59155 | -4/Warlord | Build established: Scavenger-Tank 59234 | -4/Warlord | Rebuked by Warlord 59324 | -4/Warlord | Found Prototype Reactor 59324 | -4/Warlord | Identified Vortex Chain Reactor 59330 | -4/Warlord | Found Prototype Device 59330 | -4/Warlord | Identified Exp. Cloaking Device 59339 | -4/Warlord | Found Spectral Analyzer 59342 | -4/Warlord | Found Prototype Device 59342 | -4/Warlord | Identified System Purifier 59386 | -4/Warlord | Warlord forces counterattacked 59442 | -4/Warlord | Spotted Striker 59465 | -4/Warlord | Spotted Striker 59475 | -4/Warlord | Destroyed Striker 59481 | -4/Warlord | Spotted Executioner 59519 | -4/Warlord | Found Prototype Device 59519 | -4/Warlord | Identified Adv. Kinecellerator 59520 | -4/Warlord | Lost 14 allies 59538 | -4/Warlord | Entered Proximity Caves 59674 | -3/Proximity Caves | Attracted the attention of an 0b10 checkpoint 59801 | -3/Proximity Caves | Build established: Scavenger-Mutant 61138 | -3/Proximity Caves | Discovered exit to Research (range 7) 61147 | -3/Proximity Caves | Entered Research 61147 | -3/Research | Evolved 2 slots: Propulsion x2 61148 | -3/Research | Identified exit to Quarantine 61149 | -3/Research | Loaded intel: 4 garrison access locations 61347 | -3/Research | Revision forces began assault on 0b10 61349 | -3/Research | Met up with Revision 17++ 61592 | -3/Research | Fabricated Exp. Weapon Shielding (x1) 61847 | -3/Research | Research terminal network offline 61855 | -3/Research | Discovered new exit (range 6) 61905 | -3/Research | Discovered exit to Quarantine (range 9) 62026 | -3/Research | Loaded intel: 5 recycling unit locations 62047 | -3/Research | Entered Quarantine 62048 | -3/Quarantine | Identified exit to Research 62109 | -3/Quarantine | Found Alien Artifact 62278 | -3/Quarantine | Found Alien Artifact 62278 | -3/Quarantine | Identified Core Reset Matrix 62278 | -3/Quarantine | Identified Subatomic Replicator 62278 | -3/Quarantine | Used Core Reset Matrix 62282 | -3/Quarantine | Detected hypermatrix surge 62282 | -3/Quarantine | Sensed 3 artifacts in vicinity 62287 | -3/Quarantine | Discovered exit to Research (range 10) 62569 | -3/Quarantine | Found Core Stripper 62742 | -3/Quarantine | Entered Research 62742 | -2/Research | Evolved 2 slots: Propulsion x2 63239 | -2/Research | Loaded intel: 5 recycling unit locations 63288 | -2/Research | Found Prototype Processor 63288 | -2/Research | Identified Exp. Core Analyzer 63291 | -2/Research | Found Exp. Core Analyzer 63329 | -2/Research | Garrison activated, responded to threat 63395 | -2/Research | Destroyed 10 combat bots 63412 | -2/Research | Build established: Alien-Mutant 63492 | -2/Research | First assault squad dispatched 63555 | -2/Research | Destroyed 8 combat bots 63639 | -2/Research | Spotted B-90 Cyclops 63707 | -2/Research | Lost 5 parts (1p2n1u1w) 63720 | -2/Research | System corruption reached 10% 63809 | -2/Research | Build established: Mutant 63818 | -2/Research | Core integrity fell below 50% 63824 | -2/Research | Emitted hypermatrix ping 63829 | -2/Research | Assembled emerged from beneath the floor 63854 | -2/Research | Assembled emerged from beneath the floor 63860 | -2/Research | Core integrity fell below 20% 63862 | -2/Research | Discovered new exit (range 4) 63867 | -2/Research | Lost 11 parts (1p5n4u1w) 63869 | -2/Research | Spotted B-90 Cyclops 63881 | -2/Research | Entered Testing 63910 | -2/Testing | Lost 8 allies 63910 | -2/Testing | Spotted PG-0P5CDNKZBO 63938 | -2/Testing | Spotted PL-3BIS7NKIRJ 63993 | -2/Testing | Found Prototype Processor 63993 | -2/Testing | Identified Exp. Targeting Computer 64046 | -2/Testing | Lost 3 parts (1n2u) 64050 | -2/Testing | Destroyed by P-80 Master with Gamma Rifle Last Messages --------------- 63987_ Acquired Prototype Flight Unit. 63987_ Identified Imp. Diametric Drive. 63992_ System corrupted: Component data lost. 63993_ Acquired Prototype Processor. 63993_ Identified Exp. Targeting Computer. 63993_ Faulty integration triggers meltdown. 63993_ Adv. Hacking Suite damaged (-4). 63993_ Cld. Linear Gravjet damaged (-25). 64009_ Biostasis Chamber disabled. 64010_ Exp. Cloaking Device destroyed. 64015_ Adv. Surge Thruster destroyed. 64016_ System corrupted: IFF burst signal emitted. 64027_ Acquired Unknown Hover Unit. 64027_ Identified Hover Unit. 64031_ Acquired Prototype Flight Unit. 64031_ Identified Diametric Drive. 64033_ Acquired Unknown Device. 64033_ Identified Cloaking Device. 64035_ System corrupted: Energy discharge (-23). Map ----- +----------------------------------------------------+ | ???????# #???# ???# #???# #?????? | | ???????# #???# ?## #############+########## | | ???????# #??"" """?# | | ???????# #??R """ # ######### | | ???????# #??"" """ # #???????? | | ???????# #??"" """ / #???????? | | ???????# #??## """ # ###############???????? | | ???????# #???# """ # #?????????????????????? | | ???????# #???# """ # #?????????????????????? | | #####??# #???# + #?????????????????????? | | #??# #???# # #?????????????????????? | | """ #??# #???# ??# p #???#####?????????????? | | """ #??# #???###???# c #?? ??????????????? | | #??# #???####### #?? "???????????????? | | ##+##??# #???# # #? "????? #????????? | | #???# #???# # c #? """ #????????? | | #???# #???# # # #????????? | | ##### #???# # u# " ?????????? | | #???# # + """ ????????????? | | #########+#####?# + # """ ????????????? | | ! #?# # # """ ????????????? | | #?# !# #? ???????????? | | #?# # #? ??????????? | | """"" #?# # #?? ?????????? | | """"" #?# # #??###########????????? | | """"" #?# # @ #?????????????????????? | | #?####### ##########????????????? | | #???# ??# # #????????????? | | ###################/??# # #????????????? | | ??????????????? ?# #] """ #??????????### | | ?????????????? """ ?# # """ #??????????"T | | ?????????????? """ # A# """ #??????????" | | ?????????????# """ # # """ #??????????" | | ?????????????# + + """ #??????????" | | ?????????????# """ # # ]#??????????# | | ?????????????? """ # k^ # #??????????# | | ?????????????? """ ?#k #####+#########?##### | | ??????????????? ?# ### | | ???????????????######## | | ???????????? | | ??????????????######### | | ??????????????????????######### ##### ## | | ???????????????????????????####+##### """"""" #? | | ???????????????????????????# # """"""" #? | | ???????????????????????????# """ # """"""" #? | | ???????????????????????????# """ # # | | ???????????????????????????# """ # ! / | | ???????????????????????????# + !! # | | ???????????????????????????# """ # ######## | | ????????#??????????????????#] """ # #???????? | +----------------------------------------------------+ Best States ------------- Heat Dissipation 147 Energy Generation 55 Energy Capacity 1100 Matter Stores 300 Matter Capacity 700 Sight Range 24 Robot Scan Range 18 Terrain Scan Range 24 Terrain Scan Density 2010 Jamming Range 16 Cloak Strength 4 Additional Mass Support 16 Armor Coverage 2000 Resistance: KI 40 Resistance: TH 30 Resistance: EX 50 Resistance: EM 75 Core Shielding 10 Utility Shielding 66 Weapon Shielding 90 Weapon Cycling 25 Phase Shifting 20 Evasion (%) 75 Targeting Accuracy 8 Core Analysis 8 Recoil Reduction 4 Kinecelleration 50 Salvage Targeting 3 Offensive Hacking 26 Defensive Hacking 14 Authchip Count 5 Item Schematics ----------------- None Robot Schematics ------------------ None Fabricated ------------ Hacking Suite | x1 | -6/Factory Exp. Weapon Shielding | x1 | -5/Factory Exp. Weapon Shielding | x1 | -3/Research Repaired ---------- Assault Rifle | 23% | -10/Materials Assault Rifle | 68% | -10/Materials Lgt. Treads | 70% | -10/Materials Quantum Reactor | 37% | -5/Factory Adv. KE Penetrator | 14% | -5/Factory Studied --------- Imp. Thunder Leg | -3/Quarantine | Hacked Power Sword | -3/Quarantine | Hacked Alien Tech Used ----------------- Integrated Dissipator Transdimensional Reconstructor Core Reset Matrix Core Stripper Achievements -------------- All Kinds Of Bad News Explosive Keycard Freedom! Metal Spider Uncivil War Challenges ------------ None Game ------ Seed AblativeBraceObliterator Manual? 0 Play Time 06:22:02 Cumulative 761.0 hours Start 2026.07.24 @ 11:54:06 End 2026.07.25 @ 00:24:27 Sessions 9 Manual Loads 0 Difficulty Rogue Special Mode None Game No. 264 Rogue 260 Adventurer 4 Explorer 0 Win Type - Total 21 Types 9/2/6/0/0/0/2/2/0/0 Lore% 87 Gallery% 76 Achievement% 60 Wizard Run 0 Options --------- Layout 1 ASCII 0 Keyboard 0 Movement Arrows Keybinds 0 Fullscreen 1 Font 40/SmallcapsGlow Map View 50x40 Zoom Use 0% Tactical HUD 1 Map Filters NONE Filters NONE Steam 1 RUN: 6228665e-0298-40f4-af18-105d1bd5b5ff